[Event "January 2 Early 2024"]
[Site "https://www.chess.com"]
[Date "2024.01.02"]
[Round "2"]
[White "Minina, Veronika"]
[Black "Olsson, Linus"]
[Result "0-1"]
[Board "204"]
[TimeControl "180+1"]
[WhiteFideId "4174780"]
[BlackFideId "1706098"]
[WhiteElo "2271"]
[BlackElo "2490"]
[WhiteTeam "RUS"]
[BlackTeam "SWE"]
[WhiteClock "0:00:00"]
[BlackClock "0:00:09"]

1. Nf3 {[%clk 0:03:00]}  g6 {[%clk 0:02:59]} 2. g3 {[%clk 0:03:00]}  Bg7 {[%clk 0:02:58]} 3. Bg2 {[%clk 0:03:00]}  c5 {[%clk 0:02:57]} 4. O-O {[%clk 0:03:00]}  Nc6 {[%clk 0:02:57]} 5. c4 {[%clk 0:02:59]}  d6 {[%clk 0:02:57]} 6. Nc3 {[%clk 0:02:57]}  Qd7 {[%clk 0:02:54]} 7. e3 {[%clk 0:02:54]}  Nf6 {[%clk 0:02:43]} 8. d4 {[%clk 0:02:53]}  O-O {[%clk 0:02:39]} 9. dxc5 {[%clk 0:02:38]}  dxc5 {[%clk 0:02:39]} 10. Na4 {[%clk 0:02:39]}  b6 {[%clk 0:02:13]} 11. Qc2 {[%clk 0:01:52]}  Nb4 {[%clk 0:02:08]} 12. Qb3 {[%clk 0:01:47]}  Bb7 {[%clk 0:02:05]} 13. Ne5 {[%clk 0:01:44]}  Qc7 {[%clk 0:02:01]} 14. Bxb7 {[%clk 0:01:41]}  Qxb7 {[%clk 0:02:01]} 15. a3 {[%clk 0:01:37]}  Na6 {[%clk 0:01:47]} 16. Bd2 {[%clk 0:01:26]}  Ne4 {[%clk 0:01:38]} 17. Nf3 {[%clk 0:01:15]}  Rfd8 {[%clk 0:01:32]} 18. Be1 {[%clk 0:01:05]}  Rd7 {[%clk 0:01:27]} 19. Nh4 {[%clk 0:00:53]}  Rad8 {[%clk 0:01:23]} 20. Nc3 {[%clk 0:00:52]}  Ng5 {[%clk 0:01:17]} 21. f3 {[%clk 0:00:35]}  Rd3 {[%clk 0:01:11]} 22. Qc2 {[%clk 0:00:30]}  Rxe3 {[%clk 0:00:53]} 23. Nd5 {[%clk 0:00:29]}  Rxd5 {[%clk 0:00:39]} 24. cxd5 {[%clk 0:00:29]}  Qxd5 {[%clk 0:00:21]} 25. Rd1 {[%clk 0:00:29]}  Bd4 {[%clk 0:00:21]} 26. Kg2 {[%clk 0:00:26]}  Qe6 {[%clk 0:00:15]} 27. Bf2 {[%clk 0:00:25]}  Re2 {[%clk 0:00:13]} 28. Rxd4 {[%clk 0:00:19]}  Rxc2 {[%clk 0:00:11]} 29. Rd8+ {[%clk 0:00:13]}  Kg7 {[%clk 0:00:10]} 30. Re1 {[%clk 0:00:00]}  Qxe1 {[%clk 0:00:09]} 0-1

[Event "January 2 Early 2024"]
[Site "https://www.chess.com"]
[Date "2024.01.02"]
[Round "2"]
[White "Szente Varga, Fruzsina"]
[Black "Fiedorek, Michal"]
[Result "1/2-1/2"]
[Board "207"]
[TimeControl "180+1"]
[WhiteFideId "712264"]
[BlackFideId "1199528"]
[WhiteElo "2268"]
[BlackElo "2487"]
[WhiteTeam "HUN"]
[BlackTeam "POL"]
[WhiteClock "0:00:10"]
[BlackClock "0:00:04"]

1. e4 {[%clk 0:03:00]}  c5 {[%clk 0:02:59]} 2. Nf3 {[%clk 0:03:00]}  d6 {[%clk 0:03:00]} 3. d4 {[%clk 0:02:59]}  cxd4 {[%clk 0:03:01]} 4. Qxd4 {[%clk 0:03:00]}  Nf6 {[%clk 0:02:59]} 5. Bb5+ {[%clk 0:02:58]}  Nbd7 {[%clk 0:02:52]} 6. c4 {[%clk 0:02:57]}  a6 {[%clk 0:02:37]} 7. Ba4 {[%clk 0:02:57]}  g6 {[%clk 0:02:37]} 8. Nc3 {[%clk 0:02:56]}  Bg7 {[%clk 0:02:37]} 9. O-O {[%clk 0:02:56]}  O-O {[%clk 0:02:37]} 10. h3 {[%clk 0:02:53]}  Nc5 {[%clk 0:02:35]} 11. e5 {[%clk 0:02:21]}  Nxa4 {[%clk 0:02:20]} 12. Nxa4 {[%clk 0:02:21]}  Nd7 {[%clk 0:02:21]} 13. Re1 {[%clk 0:02:12]}  Nxe5 {[%clk 0:02:19]} 14. Nxe5 {[%clk 0:02:08]}  Bxe5 {[%clk 0:02:15]} 15. Qb6 {[%clk 0:01:57]}  Bd7 {[%clk 0:02:12]} 16. Qxd8 {[%clk 0:01:53]}  Raxd8 {[%clk 0:02:10]} 17. Nb6 {[%clk 0:01:54]}  Bc6 {[%clk 0:02:06]} 18. f4 {[%clk 0:01:34]}  Bd4+ {[%clk 0:02:01]} 19. Be3 {[%clk 0:01:34]}  Bxb2 {[%clk 0:02:01]} 20. Rab1 {[%clk 0:01:34]}  Bc3 {[%clk 0:02:01]} 21. Re2 {[%clk 0:01:28]}  Bf6 {[%clk 0:01:43]} 22. Nd5 {[%clk 0:01:21]}  Bxd5 {[%clk 0:01:39]} 23. cxd5 {[%clk 0:01:22]}  b5 {[%clk 0:01:39]} 24. a4 {[%clk 0:01:17]}  bxa4 {[%clk 0:01:32]} 25. Ra2 {[%clk 0:01:16]}  Rb8 {[%clk 0:01:31]} 26. Rxb8 {[%clk 0:01:15]}  Rxb8 {[%clk 0:01:32]} 27. Rxa4 {[%clk 0:01:15]}  Rb5 {[%clk 0:01:32]} 28. Rxa6 {[%clk 0:01:08]}  Rxd5 {[%clk 0:01:31]} 29. f5 {[%clk 0:00:58]}  Rxf5 {[%clk 0:01:14]} 30. Bh6 {[%clk 0:00:57]}  Bd4+ {[%clk 0:01:14]} 31. Kh2 {[%clk 0:00:56]}  f6 {[%clk 0:01:15]} 32. Ra8+ {[%clk 0:00:55]}  Kf7 {[%clk 0:01:16]} 33. Rh8 {[%clk 0:00:55]}  Be5+ {[%clk 0:01:14]} 34. Kg1 {[%clk 0:00:54]}  Bg3 {[%clk 0:01:14]} 35. Rxh7+ {[%clk 0:00:52]}  Ke6 {[%clk 0:01:14]} 36. Bf8 {[%clk 0:00:51]}  Rd5 {[%clk 0:00:48]} 37. Rxe7+ {[%clk 0:00:51]}  Kf5 {[%clk 0:00:48]} 38. Kf1 {[%clk 0:00:50]}  Rd1+ {[%clk 0:00:48]} 39. Ke2 {[%clk 0:00:50]}  Re1+ {[%clk 0:00:44]} 40. Kf3 {[%clk 0:00:51]}  Rxe7 {[%clk 0:00:41]} 41. Bxe7 {[%clk 0:00:52]}  Be5 {[%clk 0:00:42]} 42. g4+ {[%clk 0:00:47]}  Ke6 {[%clk 0:00:42]} 43. Bd8 {[%clk 0:00:46]}  Kd5 {[%clk 0:00:41]} 44. h4 {[%clk 0:00:46]}  Kc4 {[%clk 0:00:40]} 45. h5 {[%clk 0:00:42]}  gxh5 {[%clk 0:00:37]} 46. gxh5 {[%clk 0:00:43]}  f5 {[%clk 0:00:19]} 47. h6 {[%clk 0:00:40]}  Kd5 {[%clk 0:00:17]} 48. Bg5 {[%clk 0:00:29]}  Ke6 {[%clk 0:00:15]} 49. Bf4 {[%clk 0:00:29]}  Kf7 {[%clk 0:00:15]} 50. Bd2 {[%clk 0:00:16]}  Kg6 {[%clk 0:00:15]} 51. Bc1 {[%clk 0:00:15]}  d5 {[%clk 0:00:12]} 52. Bd2 {[%clk 0:00:16]}  Bd6 {[%clk 0:00:07]} 53. Ke3 {[%clk 0:00:10]}  Bc5+ {[%clk 0:00:06]} 54. Kf4 {[%clk 0:00:11]}  Bf8 {[%clk 0:00:07]} 55. Ke5 {[%clk 0:00:09]}  Bxh6 {[%clk 0:00:04]} 56. Bxh6 {[%clk 0:00:09]}  Kxh6 {[%clk 0:00:04]} 57. Kxf5 {[%clk 0:00:09]}  d4 {[%clk 0:00:03]} 58. Ke4 {[%clk 0:00:10]}  d3 {[%clk 0:00:04]} 59. Kxd3 {[%clk 0:00:10]} 1/2-1/2

[Event "January 2 Early 2024"]
[Site "https://www.chess.com"]
[Date "2024.01.02"]
[Round "2"]
[White "Gryshko, Vitalii"]
[Black "Chirivi C, Jenny Astrid"]
[Result "1-0"]
[Board "212"]
[TimeControl "180+1"]
[WhiteFideId "14174286"]
[BlackFideId "4403061"]
[WhiteElo "2478"]
[BlackElo "2251"]
[WhiteTeam "UKR"]
[BlackTeam "COL"]
[WhiteClock "0:00:12"]
[BlackClock "0:00:01"]

1. c4 {[%clk 0:03:00]}  c5 {[%clk 0:02:58]} 2. Nf3 {[%clk 0:02:58]}  Nf6 {[%clk 0:02:58]} 3. g3 {[%clk 0:02:58]}  b6 {[%clk 0:02:58]} 4. Bg2 {[%clk 0:02:58]}  Bb7 {[%clk 0:02:59]} 5. O-O {[%clk 0:02:56]}  d5 {[%clk 0:02:59]} 6. cxd5 {[%clk 0:02:56]}  Nxd5 {[%clk 0:02:55]} 7. d4 {[%clk 0:02:55]}  e6 {[%clk 0:02:51]} 8. e4 {[%clk 0:02:55]}  Nf6 {[%clk 0:02:51]} 9. e5 {[%clk 0:02:55]}  Nd5 {[%clk 0:02:48]} 10. Nc3 {[%clk 0:02:55]}  Nxc3 {[%clk 0:02:48]} 11. bxc3 {[%clk 0:02:56]}  Be7 {[%clk 0:02:47]} 12. Qc2 {[%clk 0:02:47]}  Qc7 {[%clk 0:02:38]} 13. Qa4+ {[%clk 0:02:31]}  Nd7 {[%clk 0:02:35]} 14. Bg5 {[%clk 0:02:28]}  Bxg5 {[%clk 0:02:31]} 15. Nxg5 {[%clk 0:02:29]}  Bxg2 {[%clk 0:02:30]} 16. Kxg2 {[%clk 0:02:29]}  cxd4 {[%clk 0:02:21]} 17. cxd4 {[%clk 0:02:24]}  Qb7+ {[%clk 0:02:17]} 18. f3 {[%clk 0:02:22]}  b5 {[%clk 0:02:11]} 19. Qc2 {[%clk 0:02:22]}  Rc8 {[%clk 0:02:09]} 20. Qd3 {[%clk 0:02:17]}  Qd5 {[%clk 0:01:49]} 21. Qa3 {[%clk 0:01:36]}  Qxd4 {[%clk 0:01:25]} 22. Rad1 {[%clk 0:01:18]}  Qxe5 {[%clk 0:01:12]} 23. Ne4 {[%clk 0:01:06]}  Rc2+ {[%clk 0:01:00]} 24. Rf2 {[%clk 0:00:42]}  Rxf2+ {[%clk 0:00:58]} 25. Kxf2 {[%clk 0:00:43]}  Qc7 {[%clk 0:00:48]} 26. Nd6+ {[%clk 0:00:41]}  Ke7 {[%clk 0:00:47]} 27. Nf5+ {[%clk 0:00:23]}  Kf6 {[%clk 0:00:43]} 28. Qe7+ {[%clk 0:00:15]}  Kxf5 {[%clk 0:00:43]} 29. Qxf7+ {[%clk 0:00:14]}  Kg5 {[%clk 0:00:39]} 30. Qxg7+ {[%clk 0:00:14]}  Kf5 {[%clk 0:00:34]} 31. Qf7+ {[%clk 0:00:09]}  Kg5 {[%clk 0:00:32]} 32. f4+ {[%clk 0:00:07]}  Kh6 {[%clk 0:00:32]} 33. Rxd7 {[%clk 0:00:07]}  Qc2+ {[%clk 0:00:30]} 34. Kg1 {[%clk 0:00:06]}  Qc1+ {[%clk 0:00:29]} 35. Kg2 {[%clk 0:00:06]}  Qc2+ {[%clk 0:00:29]} 36. Kh3 {[%clk 0:00:05]}  Qf5+ {[%clk 0:00:30]} 37. Qxf5 {[%clk 0:00:05]}  exf5 {[%clk 0:00:29]} 38. Rxa7 {[%clk 0:00:05]}  Rb8 {[%clk 0:00:27]} 39. Rf7 {[%clk 0:00:06]}  Kg6 {[%clk 0:00:27]} 40. Rc7 {[%clk 0:00:06]}  b4 {[%clk 0:00:27]} 41. Rc6+ {[%clk 0:00:06]}  Kg7 {[%clk 0:00:25]} 42. Kh4 {[%clk 0:00:06]}  Ra8 {[%clk 0:00:25]} 43. Rc7+ {[%clk 0:00:05]}  Kg6 {[%clk 0:00:24]} 44. Rc6+ {[%clk 0:00:06]}  Kg7 {[%clk 0:00:24]} 45. Rc2 {[%clk 0:00:06]}  Kg6 {[%clk 0:00:22]} 46. Rb2 {[%clk 0:00:06]}  Ra4 {[%clk 0:00:19]} 47. Kh3 {[%clk 0:00:06]}  h6 {[%clk 0:00:19]} 48. Kg2 {[%clk 0:00:07]}  Kf6 {[%clk 0:00:18]} 49. Kf2 {[%clk 0:00:07]}  Kg6 {[%clk 0:00:17]} 50. Ke3 {[%clk 0:00:08]}  Ra3+ {[%clk 0:00:17]} 51. Kd4 {[%clk 0:00:08]}  Ra4 {[%clk 0:00:16]} 52. Kc5 {[%clk 0:00:09]}  b3 {[%clk 0:00:12]} 53. axb3 {[%clk 0:00:09]}  Re4 {[%clk 0:00:11]} 54. b4 {[%clk 0:00:09]}  Kf6 {[%clk 0:00:10]} 55. b5 {[%clk 0:00:08]}  Ke7 {[%clk 0:00:10]} 56. Rd2 {[%clk 0:00:09]}  Re1 {[%clk 0:00:07]} 57. b6 {[%clk 0:00:09]}  Rc1+ {[%clk 0:00:07]} 58. Kb5 {[%clk 0:00:09]}  Rb1+ {[%clk 0:00:07]} 59. Kc6 {[%clk 0:00:10]}  Rc1+ {[%clk 0:00:07]} 60. Kb7 {[%clk 0:00:11]}  Rb1 {[%clk 0:00:06]} 61. Ka7 {[%clk 0:00:10]}  Ra1+ {[%clk 0:00:06]} 62. Kb8 {[%clk 0:00:11]}  Rb1 {[%clk 0:00:06]} 63. b7 {[%clk 0:00:11]}  h5 {[%clk 0:00:06]} 64. Rd5 {[%clk 0:00:11]}  Ke6 {[%clk 0:00:05]} 65. Re5+ {[%clk 0:00:10]}  Kf6 {[%clk 0:00:05]} 66. Kc8 {[%clk 0:00:10]}  Rc1+ {[%clk 0:00:05]} 67. Kd7 {[%clk 0:00:09]}  Rb1 {[%clk 0:00:05]} 68. Kc7 {[%clk 0:00:10]}  Rc1+ {[%clk 0:00:05]} 69. Kb6 {[%clk 0:00:10]}  Rb1+ {[%clk 0:00:03]} 70. Rb5 {[%clk 0:00:11]}  Rxb5+ {[%clk 0:00:01]} 71. Kxb5 {[%clk 0:00:12]} 1-0

[Event "January 2 Early 2024"]
[Site "https://www.chess.com"]
[Date "2024.01.02"]
[Round "2"]
[White "Mekhane, Adam"]
[Black "Cueto, Jonny"]
[Result "1-0"]
[Board "213"]
[TimeControl "180+1"]
[WhiteFideId "36050601"]
[BlackFideId "3300145"]
[WhiteElo "2477"]
[BlackElo "2247"]
[WhiteTeam "FRA"]
[BlackTeam "BOL"]
[WhiteClock "0:00:56"]
[BlackClock "0:00:10"]

1. e4 {[%clk 0:03:00]}  e6 {[%clk 0:03:00]} 2. d4 {[%clk 0:02:58]}  d5 {[%clk 0:03:01]} 3. exd5 {[%clk 0:02:56]}  exd5 {[%clk 0:03:01]} 4. Nf3 {[%clk 0:02:56]}  Bd6 {[%clk 0:03:02]} 5. Bd3 {[%clk 0:02:55]}  Ne7 {[%clk 0:03:02]} 6. O-O {[%clk 0:02:53]}  Bg4 {[%clk 0:03:02]} 7. Nc3 {[%clk 0:02:53]}  Nbc6 {[%clk 0:03:02]} 8. Nb5 {[%clk 0:02:52]}  Qd7 {[%clk 0:02:43]} 9. c3 {[%clk 0:02:40]}  O-O-O {[%clk 0:02:37]} 10. a4 {[%clk 0:02:37]}  Nf5 {[%clk 0:02:28]} 11. Nxd6+ {[%clk 0:02:32]}  Nxd6 {[%clk 0:02:29]} 12. b4 {[%clk 0:02:29]}  Ne4 {[%clk 0:02:24]} 13. b5 {[%clk 0:02:27]}  Ne7 {[%clk 0:02:24]} 14. c4 {[%clk 0:02:18]}  Nc3 {[%clk 0:01:53]} 15. Qc2 {[%clk 0:01:30]}  Bxf3 {[%clk 0:01:53]} 16. gxf3 {[%clk 0:01:31]}  dxc4 {[%clk 0:01:44]} 17. Bxc4 {[%clk 0:01:24]}  Qxd4 {[%clk 0:01:31]} 18. Bxf7 {[%clk 0:01:23]}  Ncd5 {[%clk 0:00:35]} 19. Be3 {[%clk 0:01:14]}  Nxe3 {[%clk 0:00:31]} 20. fxe3 {[%clk 0:01:14]}  Qxe3+ {[%clk 0:00:31]} 21. Rf2 {[%clk 0:01:13]}  Nf5 {[%clk 0:00:25]} 22. Qxf5+ {[%clk 0:01:07]}  Kb8 {[%clk 0:00:25]} 23. Qe4 {[%clk 0:01:03]}  Qc3 {[%clk 0:00:20]} 24. Re1 {[%clk 0:01:02]}  Rhf8 {[%clk 0:00:19]} 25. Bh5 {[%clk 0:01:01]}  Qf6 {[%clk 0:00:18]} 26. Bg4 {[%clk 0:01:01]}  h5 {[%clk 0:00:18]} 27. Bxh5 {[%clk 0:00:59]}  Qg5+ {[%clk 0:00:18]} 28. Bg4 {[%clk 0:00:59]}  Rf4 {[%clk 0:00:16]} 29. Qe5 {[%clk 0:00:57]}  Rfd4 {[%clk 0:00:10]} 30. Qxg5 {[%clk 0:00:56]} 1-0

[Event "January 2 Early 2024"]
[Site "https://www.chess.com"]
[Date "2024.01.02"]
[Round "2"]
[White "Kostov, Deyan Samuil"]
[Black "Fernandez Hernandez, Gerardo"]
[Result "0-1"]
[Board "215"]
[TimeControl "180+1"]
[WhiteFideId "30909015"]
[BlackFideId "2207400"]
[WhiteElo "2476"]
[BlackElo "2241"]
[WhiteTeam "BUL"]
[BlackTeam "ESP"]
[WhiteClock "0:00:00"]
[BlackClock "0:02:28"]

1. d4 {[%clk 0:03:00]}  Nf6 {[%clk 0:02:59]} 2. c4 {[%clk 0:03:01]}  c5 {[%clk 0:02:59]} 3. d5 {[%clk 0:03:01]}  b5 {[%clk 0:02:59]} 4. Qc2 {[%clk 0:03:02]}  b4 {[%clk 0:02:59]} 5. e4 {[%clk 0:03:02]}  d6 {[%clk 0:02:59]} 6. Bd3 {[%clk 0:03:03]}  g6 {[%clk 0:02:59]} 7. f4 {[%clk 0:03:03]}  Bg7 {[%clk 0:02:56]} 8. Nf3 {[%clk 0:03:04]}  Bg4 {[%clk 0:02:56]} 9. O-O {[%clk 0:03:03]}  Nbd7 {[%clk 0:02:53]} 10. Nbd2 {[%clk 0:03:03]}  O-O {[%clk 0:02:50]} 11. h3 {[%clk 0:03:03]}  Bxf3 {[%clk 0:02:50]} 12. Nxf3 {[%clk 0:03:04]}  Qc7 {[%clk 0:02:43]} 13. Bd2 {[%clk 0:03:03]}  a5 {[%clk 0:02:42]} 14. Rae1 {[%clk 0:00:00]}  e6 {[%clk 0:02:28]} 0-1

[Event "January 2 Early 2024"]
[Site "https://www.chess.com"]
[Date "2024.01.02"]
[Round "2"]
[White "Ortega Amarelle, Mariano"]
[Black "Piddubna, Bozhena"]
[Result "1-0"]
[Board "219"]
[TimeControl "180+1"]
[WhiteFideId "3504301"]
[BlackFideId "34109293"]
[WhiteElo "2473"]
[BlackElo "2217"]
[WhiteTeam "CPV"]
[BlackTeam "UKR"]
[WhiteClock "0:00:41"]
[BlackClock "0:00:00"]

1. e4 {[%clk 0:03:00]}  e5 {[%clk 0:02:59]} 2. Nf3 {[%clk 0:02:59]}  Nc6 {[%clk 0:03:00]} 3. Nc3 {[%clk 0:02:57]}  Nf6 {[%clk 0:03:00]} 4. d4 {[%clk 0:02:53]}  exd4 {[%clk 0:03:00]} 5. Nxd4 {[%clk 0:02:52]}  Bb4 {[%clk 0:02:59]} 6. Nxc6 {[%clk 0:02:49]}  bxc6 {[%clk 0:03:00]} 7. Bd3 {[%clk 0:02:46]}  d5 {[%clk 0:02:59]} 8. exd5 {[%clk 0:02:45]}  cxd5 {[%clk 0:02:59]} 9. O-O {[%clk 0:02:45]}  O-O {[%clk 0:02:56]} 10. Bg5 {[%clk 0:02:45]}  c6 {[%clk 0:02:54]} 11. h3 {[%clk 0:02:44]}  Rb8 {[%clk 0:02:49]} 12. Qf3 {[%clk 0:02:42]}  Bd6 {[%clk 0:02:49]} 13. b3 {[%clk 0:02:38]}  Be5 {[%clk 0:02:40]} 14. Bd2 {[%clk 0:02:35]}  Re8 {[%clk 0:02:14]} 15. Rae1 {[%clk 0:02:33]}  Rb7 {[%clk 0:02:08]} 16. Re2 {[%clk 0:02:31]}  Rbe7 {[%clk 0:02:08]} 17. Rfe1 {[%clk 0:02:29]}  Bd4 {[%clk 0:02:01]} 18. Na4 {[%clk 0:02:21]}  Ne4 {[%clk 0:01:40]} 19. Be3 {[%clk 0:01:50]}  Bxe3 {[%clk 0:01:25]} 20. Rxe3 {[%clk 0:01:49]}  Ng5 {[%clk 0:00:55]} 21. Qg3 {[%clk 0:01:43]}  Rxe3 {[%clk 0:00:40]} 22. Rxe3 {[%clk 0:01:42]}  Rxe3 {[%clk 0:00:40]} 23. Qxe3 {[%clk 0:01:42]}  h6 {[%clk 0:00:36]} 24. Qxa7 {[%clk 0:01:37]}  Qe8 {[%clk 0:00:26]} 25. Qe3 {[%clk 0:01:23]}  Be6 {[%clk 0:00:19]} 26. Nc5 {[%clk 0:01:21]}  Qa8 {[%clk 0:00:19]} 27. a4 {[%clk 0:01:20]}  Qa5 {[%clk 0:00:10]} 28. h4 {[%clk 0:01:17]}  Ne4 {[%clk 0:00:07]} 29. Bxe4 {[%clk 0:01:15]}  dxe4 {[%clk 0:00:07]} 30. Nxe6 {[%clk 0:01:13]}  fxe6 {[%clk 0:00:06]} 31. Qxe4 {[%clk 0:01:13]}  Qc3 {[%clk 0:00:04]} 32. Qxe6+ {[%clk 0:01:10]}  Kh7 {[%clk 0:00:05]} 33. Qe4+ {[%clk 0:01:09]}  Kh8 {[%clk 0:00:05]} 34. g3 {[%clk 0:01:08]}  c5 {[%clk 0:00:04]} 35. Kg2 {[%clk 0:01:06]}  Qd2 {[%clk 0:00:03]} 36. Qe8+ {[%clk 0:01:02]}  Kh7 {[%clk 0:00:03]} 37. Qe4+ {[%clk 0:01:01]}  Kh8 {[%clk 0:00:03]} 38. Qd3 {[%clk 0:01:00]}  Qc1 {[%clk 0:00:03]} 39. a5 {[%clk 0:00:58]}  Qa3 {[%clk 0:00:02]} 40. a6 {[%clk 0:00:58]}  Qa1 {[%clk 0:00:02]} 41. c3 {[%clk 0:00:51]}  Kg8 {[%clk 0:00:01]} 42. b4 {[%clk 0:00:49]}  cxb4 {[%clk 0:00:02]} 43. cxb4 {[%clk 0:00:49]}  Qa4 {[%clk 0:00:02]} 44. b5 {[%clk 0:00:47]}  Qa5 {[%clk 0:00:02]} 45. Qd5+ {[%clk 0:00:45]}  Kh8 {[%clk 0:00:02]} 46. Qc6 {[%clk 0:00:45]}  Qd2 {[%clk 0:00:02]} 47. a7 {[%clk 0:00:43]}  g5 {[%clk 0:00:01]} 48. a8=Q+ {[%clk 0:00:42]}  Kg7 {[%clk 0:00:02]} 49. Qab7+ {[%clk 0:00:41]}  Kf8 {[%clk 0:00:00]} 50. Qcc8+ {[%clk 0:00:41]} 1-0

[Event "January 2 Early 2024"]
[Site "https://www.chess.com"]
[Date "2024.01.02"]
[Round "2"]
[White "Clawitter, Craig"]
[Black "Brankovic, Dejan"]
[Result "0-1"]
[Board "222"]
[TimeControl "180+1"]
[WhiteFideId "2023105"]
[BlackFideId "921602"]
[WhiteElo "2205"]
[BlackElo "2469"]
[WhiteTeam "USA"]
[BlackTeam "SRB"]
[WhiteClock "0:00:08"]
[BlackClock "0:00:37"]

1. e4 {[%clk 0:03:00]}  c5 {[%clk 0:03:00]} 2. Nf3 {[%clk 0:03:00]}  g6 {[%clk 0:03:00]} 3. d4 {[%clk 0:03:00]}  cxd4 {[%clk 0:03:01]} 4. Nxd4 {[%clk 0:03:01]}  Bg7 {[%clk 0:03:01]} 5. Nc3 {[%clk 0:03:01]}  Nc6 {[%clk 0:03:01]} 6. Be3 {[%clk 0:03:02]}  Nf6 {[%clk 0:03:02]} 7. Bc4 {[%clk 0:03:02]}  d6 {[%clk 0:03:01]} 8. f3 {[%clk 0:03:01]}  Qb6 {[%clk 0:03:01]} 9. Nf5 {[%clk 0:02:58]}  Qxb2 {[%clk 0:03:01]} 10. Nxg7+ {[%clk 0:02:58]}  Kf8 {[%clk 0:03:02]} 11. Nd5 {[%clk 0:02:33]}  Nxd5 {[%clk 0:03:01]} 12. Bxd5 {[%clk 0:02:28]}  Kxg7 {[%clk 0:02:58]} 13. Bxc6 {[%clk 0:02:28]}  Qc3+ {[%clk 0:02:58]} 14. Kf2 {[%clk 0:02:21]}  Qxc6 {[%clk 0:02:59]} 15. Qd4+ {[%clk 0:02:03]}  f6 {[%clk 0:02:58]} 16. Qd2 {[%clk 0:01:53]}  h5 {[%clk 0:02:57]} 17. Rab1 {[%clk 0:01:45]}  Be6 {[%clk 0:02:54]} 18. Rb4 {[%clk 0:01:35]}  b6 {[%clk 0:02:50]} 19. a4 {[%clk 0:01:29]}  Rac8 {[%clk 0:02:45]} 20. a5 {[%clk 0:01:22]}  bxa5 {[%clk 0:02:42]} 21. Rb2 {[%clk 0:01:22]}  a6 {[%clk 0:02:41]} 22. Qxa5 {[%clk 0:01:16]}  Rb8 {[%clk 0:02:26]} 23. Rhb1 {[%clk 0:01:00]}  Rxb2 {[%clk 0:02:24]} 24. Rxb2 {[%clk 0:01:01]}  Rc8 {[%clk 0:02:22]} 25. h4 {[%clk 0:00:45]}  Qc3 {[%clk 0:02:00]} 26. Qxc3 {[%clk 0:00:22]}  Rxc3 {[%clk 0:01:59]} 27. Ke2 {[%clk 0:00:21]}  a5 {[%clk 0:01:49]} 28. Kd2 {[%clk 0:00:17]}  Ra3 {[%clk 0:01:39]} 29. Rb7 {[%clk 0:00:16]}  Kf7 {[%clk 0:01:39]} 30. Bb6 {[%clk 0:00:15]}  Ke8 {[%clk 0:01:20]} 31. Rb8+ {[%clk 0:00:15]}  Kd7 {[%clk 0:01:20]} 32. Rb7+ {[%clk 0:00:16]}  Kc6 {[%clk 0:01:17]} 33. Rxe7 {[%clk 0:00:16]}  Bc4 {[%clk 0:01:08]} 34. Bd8 {[%clk 0:00:14]}  Bf1 {[%clk 0:01:04]} 35. Rc7+ {[%clk 0:00:14]}  Kb5 {[%clk 0:01:04]} 36. Bxf6 {[%clk 0:00:14]}  Bxg2 {[%clk 0:01:02]} 37. f4 {[%clk 0:00:13]}  Bxe4 {[%clk 0:01:01]} 38. Bc3 {[%clk 0:00:12]}  Kb6 {[%clk 0:00:47]} 39. Re7 {[%clk 0:00:11]}  d5 {[%clk 0:00:47]} 40. Re6+ {[%clk 0:00:11]}  Kc5 {[%clk 0:00:42]} 41. Ra6 {[%clk 0:00:11]}  a4 {[%clk 0:00:42]} 42. Ra5+ {[%clk 0:00:11]}  Kb6 {[%clk 0:00:40]} 43. Ra8 {[%clk 0:00:10]}  Ra2 {[%clk 0:00:40]} 44. Rb8+ {[%clk 0:00:10]}  Kc7 {[%clk 0:00:40]} 45. Rb4 {[%clk 0:00:09]}  Rxc2+ {[%clk 0:00:40]} 46. Ke3 {[%clk 0:00:08]}  Rxc3+ {[%clk 0:00:37]} 47. Kd4 {[%clk 0:00:08]} 0-1

[Event "January 2 Early 2024"]
[Site "https://www.chess.com"]
[Date "2024.01.02"]
[Round "2"]
[White "Gutierrez Carmona, Juan Alejandro"]
[Black "Nadeev, Sergey"]
[Result "0-1"]
[Board "224"]
[TimeControl "180+1"]
[WhiteFideId "5106770"]
[BlackFideId "4180038"]
[WhiteElo "2201"]
[BlackElo "2467"]
[WhiteTeam "MEX"]
[BlackTeam "RUS"]
[WhiteClock "0:00:00"]
[BlackClock "0:02:09"]

1. e4 {[%clk 0:03:00]}  e5 {[%clk 0:02:56]} 2. Nf3 {[%clk 0:02:57]}  Nc6 {[%clk 0:02:56]} 3. Bb5 {[%clk 0:02:57]}  a6 {[%clk 0:02:56]} 4. Ba4 {[%clk 0:02:58]}  Nf6 {[%clk 0:02:56]} 5. d3 {[%clk 0:02:57]}  b5 {[%clk 0:02:56]} 6. Bb3 {[%clk 0:02:57]}  Be7 {[%clk 0:02:57]} 7. a4 {[%clk 0:02:56]}  Bb7 {[%clk 0:02:54]} 8. O-O {[%clk 0:02:46]}  d6 {[%clk 0:02:53]} 9. Nc3 {[%clk 0:02:43]}  Nd4 {[%clk 0:02:52]} 10. Nxd4 {[%clk 0:02:39]}  exd4 {[%clk 0:02:53]} 11. Nd5 {[%clk 0:02:07]}  c5 {[%clk 0:02:53]} 12. Nxf6+ {[%clk 0:01:54]}  Bxf6 {[%clk 0:02:51]} 13. Qg4 {[%clk 0:01:32]}  O-O {[%clk 0:02:49]} 14. Bf4 {[%clk 0:01:13]}  d5 {[%clk 0:02:41]} 15. exd5 {[%clk 0:01:02]}  Bxd5 {[%clk 0:02:42]} 16. Bxd5 {[%clk 0:01:01]}  Qxd5 {[%clk 0:02:43]} 17. Rfe1 {[%clk 0:00:38]}  Rfe8 {[%clk 0:02:42]} 18. axb5 {[%clk 0:00:34]}  axb5 {[%clk 0:02:42]} 19. b3 {[%clk 0:00:25]}  h5 {[%clk 0:02:29]} 20. Qf3 {[%clk 0:00:23]}  Qxf3 {[%clk 0:02:29]} 21. gxf3 {[%clk 0:00:24]}  Rxe1+ {[%clk 0:02:27]} 22. Rxe1 {[%clk 0:00:23]}  Ra2 {[%clk 0:02:27]} 23. Re2 {[%clk 0:00:20]}  c4 {[%clk 0:02:21]} 24. bxc4 {[%clk 0:00:18]}  bxc4 {[%clk 0:02:22]} 25. dxc4 {[%clk 0:00:18]}  Kh7 {[%clk 0:02:23]} 26. Rd2 {[%clk 0:00:17]}  Ra4 {[%clk 0:02:22]} 27. c5 {[%clk 0:00:14]}  Rc4 {[%clk 0:02:21]} 28. Bd6 {[%clk 0:00:14]}  Kg6 {[%clk 0:02:22]} 29. Kf1 {[%clk 0:00:13]}  Kf5 {[%clk 0:02:18]} 30. Ke2 {[%clk 0:00:13]}  Be5 {[%clk 0:02:17]} 31. Bxe5 {[%clk 0:00:12]}  Kxe5 {[%clk 0:02:18]} 32. Kd1 {[%clk 0:00:03]}  Rxc5 {[%clk 0:02:16]} 33. Rd3 {[%clk 0:00:00]}  Ra5 {[%clk 0:02:09]} 0-1